[Event "*** Titled Tuesday Blitz"]
[Site "Chess.com"]
[Date "2021.02.09"]
[Round "1"]
[White "ridnani2021"]
[Black "azikom"]
[Result "1/2-1/2"]
[WhiteElo "2359"]
[BlackElo "2658"]
[TimeControl "180+1"]
[EndTime "10:08:50 PST"]
[Termination "Game drawn by agreement"]

1. e4 {[%clk 0:03:00.9]} 1... Nf6 {[%clk 0:02:57.6]} 2. e5 {[%clk 0:03:00.5]}
2... Nd5 {[%clk 0:02:57]} 3. d4 {[%clk 0:03:01.1]} 3... d6 {[%clk 0:02:57]} 4.
exd6 {[%clk 0:03:02]} 4... exd6 {[%clk 0:02:57.1]} 5. Nf3 {[%clk 0:03:02.5]}
5... Be7 {[%clk 0:02:57]} 6. c3 {[%clk 0:03:02.3]} 6... O-O {[%clk 0:02:56.2]}
7. Be2 {[%clk 0:03:02.7]} 7... c6 {[%clk 0:02:54.4]} 8. O-O {[%clk 0:03:03.1]}
8... Bf5 {[%clk 0:02:53.5]} 9. Re1 {[%clk 0:03:03]} 9... Re8 {[%clk 0:02:53.3]}
10. Nbd2 {[%clk 0:03:01.8]} 10... Nd7 {[%clk 0:02:52.5]} 11. Nc4 {[%clk
0:02:59.1]} 11... Nf8 {[%clk 0:02:51.3]} 12. g3 {[%clk 0:02:58]} 12... h6 {[%clk
0:02:51.1]} 13. Ne3 {[%clk 0:02:57.6]} 13... Nxe3 {[%clk 0:02:49.9]} 14. Bxe3
{[%clk 0:02:58.5]} 14... Bg4 {[%clk 0:02:35.2]} 15. Nd2 {[%clk 0:02:52.3]} 15...
Bxe2 {[%clk 0:02:34]} 16. Qxe2 {[%clk 0:02:53.2]} 16... Bg5 {[%clk 0:02:33]} 17.
Qf3 {[%clk 0:02:49.4]} 17... Bxe3 {[%clk 0:02:27.7]} 18. Rxe3 {[%clk 0:02:50.3]}
18... Rxe3 {[%clk 0:02:22.1]} 19. Qxe3 {[%clk 0:02:51.2]} 19... d5 {[%clk
0:02:22]} 20. Re1 {[%clk 0:02:48.3]} 20... Qb6 {[%clk 0:02:20.6]} 21. Nb3 {[%clk
0:02:45.5]} 21... a5 {[%clk 0:02:19.9]} 22. Re2 {[%clk 0:02:36.5]} 22... a4
{[%clk 0:02:15.6]} 23. Nc5 {[%clk 0:02:35.7]} 23... Qb5 {[%clk 0:02:12.5]} 24.
Qd3 {[%clk 0:02:32.4]} 24... Qb6 {[%clk 0:02:03.2]} 25. Qe3 {[%clk 0:02:31.5]}
25... Ng6 {[%clk 0:01:51]} 26. h4 {[%clk 0:02:25.1]} 26... Qb5 {[%clk
0:01:38.8]} 27. Qd3 {[%clk 0:02:23.6]} 27... Qb6 {[%clk 0:01:23.9]} 28. Qe3
{[%clk 0:02:19.9]} 28... Nf8 {[%clk 0:01:23.1]} 29. Kg2 {[%clk 0:02:16.5]} 29...
Ng6 {[%clk 0:01:02.8]} 30. Qd3 {[%clk 0:02:02.5]} 30... Qc7 {[%clk 0:00:57.2]}
31. Qe3 {[%clk 0:01:52.5]} 31... b6 {[%clk 0:00:55.5]} 32. Nd3 {[%clk
0:01:52.5]} 32... a3 {[%clk 0:00:48.2]} 33. b3 {[%clk 0:01:50.8]} 33... Qd6
{[%clk 0:00:41.7]} 34. h5 {[%clk 0:01:42]} 34... Nf8 {[%clk 0:00:39.6]} 35. Qe7
{[%clk 0:01:41.9]} 35... Rd8 {[%clk 0:00:20.4]} 36. Qxd6 {[%clk 0:01:39.9]}
36... Rxd6 {[%clk 0:00:20.4]} 37. Re7 {[%clk 0:01:40.5]} 37... Re6 {[%clk
0:00:20.5]} 38. Rxe6 {[%clk 0:01:31.3]} 38... Nxe6 {[%clk 0:00:20.3]} 39. Nb4
{[%clk 0:01:28.1]} 39... Ng5 {[%clk 0:00:15.2]} 40. f3 {[%clk 0:01:23.6]} 40...
c5 {[%clk 0:00:13.2]} 41. dxc5 {[%clk 0:01:22]} 41... bxc5 {[%clk 0:00:13.6]}
42. Nxd5 {[%clk 0:01:22.5]} 42... Kf8 {[%clk 0:00:14.1]} 43. Ne3 {[%clk
0:01:21.4]} 43... Ne6 {[%clk 0:00:12.8]} 44. Nc4 {[%clk 0:01:20.5]} 44... Ke7
{[%clk 0:00:13.3]} 45. Nxa3 {[%clk 0:01:20.4]} 45... Kd6 {[%clk 0:00:13.5]} 46.
Kf2 {[%clk 0:01:20]} 46... Nc7 {[%clk 0:00:13]} 47. Nc4+ {[%clk 0:01:19.5]}
47... Ke6 {[%clk 0:00:12.4]} 48. Ke3 {[%clk 0:01:16.8]} 48... Nd5+ {[%clk
0:00:12.5]} 49. Kd3 {[%clk 0:01:17.2]} 49... Nf6 {[%clk 0:00:13]} 50. g4 {[%clk
0:01:16]} 50... Nd5 {[%clk 0:00:12.8]} 51. Nd2 {[%clk 0:01:11.4]} 51... f5
{[%clk 0:00:12.4]} 52. a4 {[%clk 0:01:06.4]} 52... fxg4 {[%clk 0:00:12.1]} 53.
fxg4 {[%clk 0:01:07.3]} 53... Nf6 {[%clk 0:00:12.7]} 54. Ne4 {[%clk 0:01:05.8]}
54... Nxg4 {[%clk 0:00:12.8]} 55. Nxc5+ {[%clk 0:01:06]} 55... Kd5 {[%clk
0:00:13.5]} 56. Ne4 {[%clk 0:01:00.8]} 56... Ne5+ {[%clk 0:00:13]} 57. Ke3
{[%clk 0:01:01.2]} 57... Ng4+ {[%clk 0:00:13.5]} 58. Kf4 {[%clk 0:01:01.2]}
58... Ne5 {[%clk 0:00:13.7]} 59. c4+ {[%clk 0:01:00.4]} 59... Kd4 {[%clk
0:00:13.6]} 60. Nd6 {[%clk 0:00:59.2]} 60... g5+ {[%clk 0:00:12.8]} 61. hxg6
{[%clk 0:00:56]} 61... Nxg6+ {[%clk 0:00:13]} 62. Kf5 {[%clk 0:00:56.5]} 62...
Nh4+ {[%clk 0:00:13.1]} 63. Kg4 {[%clk 0:00:56]} 63... Ng6 {[%clk 0:00:12.5]}
64. a5 {[%clk 0:00:55.9]} 64... Kc5 {[%clk 0:00:12]} 65. Nb5 {[%clk 0:00:51.3]}
65... Ne7 {[%clk 0:00:10.5]} 66. Kh5 {[%clk 0:00:47.2]} 66... Nc6 {[%clk
0:00:08.7]} 67. a6 {[%clk 0:00:46.4]} 67... Kb6 {[%clk 0:00:08.9]} 68. a7 {[%clk
0:00:46.1]} 68... Kb7 {[%clk 0:00:09.1]} 69. Kxh6 {[%clk 0:00:45.3]} 69... Na5
{[%clk 0:00:09.6]} 70. Nd4 {[%clk 0:00:44.3]} 70... Kxa7 {[%clk 0:00:09]} 71.
Kg5 {[%clk 0:00:45]} 71... Kb6 {[%clk 0:00:09.2]} 72. Kf4 {[%clk 0:00:45.5]}
72... Kc5 {[%clk 0:00:09.7]} 73. Ne6+ {[%clk 0:00:30.1]} 73... Kb4 {[%clk
0:00:09.2]} 74. c5 {[%clk 0:00:26.4]} 74... Kxb3 {[%clk 0:00:08.6]} 75. Ke5
{[%clk 0:00:27.2]} 75... Kb4 {[%clk 0:00:09.1]} 76. Kd6 {[%clk 0:00:27.1]} 76...
Nb7+ {[%clk 0:00:08.8]} 1/2-1/2

[Event "*** Titled Tuesday Blitz"]
[Site "Chess.com"]
[Date "2021.02.09"]
[Round "1"]
[White "manmanlai1"]
[Black "hansen"]
[Result "0-1"]
[WhiteElo "2459"]
[BlackElo "2950"]
[TimeControl "180+1"]
[EndTime "10:08:55 PST"]
[Termination "hansen won by resignation"]

1. c4 {[%clk 0:02:59.2]} 1... Nf6 {[%clk 0:02:54.3]} 2. Nc3 {[%clk 0:02:58.4]}
2... e5 {[%clk 0:02:53]} 3. Nf3 {[%clk 0:02:53.9]} 3... Nc6 {[%clk 0:02:49.4]}
4. d3 {[%clk 0:02:52.6]} 4... Bb4 {[%clk 0:02:48.3]} 5. Bd2 {[%clk 0:02:51]}
5... O-O {[%clk 0:02:47.1]} 6. a3 {[%clk 0:02:50.7]} 6... Bxc3 {[%clk
0:02:46.4]} 7. Bxc3 {[%clk 0:02:51.6]} 7... e4 {[%clk 0:02:47]} 8. Nd4 {[%clk
0:02:41.6]} 8... Re8 {[%clk 0:02:46.2]} 9. e3 {[%clk 0:02:39.8]} 9... Ne5 {[%clk
0:02:45.7]} 10. Be2 {[%clk 0:02:27.1]} 10... exd3 {[%clk 0:02:43.1]} 11. Bxd3
{[%clk 0:02:28]} 11... Nxd3+ {[%clk 0:02:42.8]} 12. Qxd3 {[%clk 0:02:27.5]}
12... d5 {[%clk 0:02:42.8]} 13. O-O {[%clk 0:02:25.8]} 13... c5 {[%clk
0:02:37.5]} 14. Nf3 {[%clk 0:02:20.7]} 14... b6 {[%clk 0:02:36.4]} 15. Rad1
{[%clk 0:02:09.7]} 15... Ba6 {[%clk 0:02:09.3]} 16. Rfe1 {[%clk 0:01:26.2]}
16... Bxc4 {[%clk 0:01:57.4]} 17. Qc2 {[%clk 0:01:22.3]} 17... Ne4 {[%clk
0:01:52.8]} 18. Be5 {[%clk 0:01:13.9]} 18... Ng5 {[%clk 0:01:44.5]} 19. Nxg5
{[%clk 0:01:06.3]} 19... Qxg5 {[%clk 0:01:44.3]} 20. Bf4 {[%clk 0:01:06]} 20...
Qh5 {[%clk 0:01:44.4]} 21. b3 {[%clk 0:01:03.9]} 21... Bb5 {[%clk 0:01:44.4]}
22. Rd2 {[%clk 0:01:04.3]} 22... d4 {[%clk 0:01:43.1]} 23. e4 {[%clk 0:00:56]}
23... f5 {[%clk 0:01:37.7]} 24. f3 {[%clk 0:00:50.4]} 24... Rad8 {[%clk
0:01:34.8]} 25. Rdd1 {[%clk 0:00:33.2]} 25... h6 {[%clk 0:01:16.6]} 26. a4
{[%clk 0:00:25.7]} 26... Ba6 {[%clk 0:01:15.3]} 27. exf5 {[%clk 0:00:15.7]}
27... d3 {[%clk 0:01:15.3]} 28. Qc3 {[%clk 0:00:13.5]} 28... Qxf5 {[%clk
0:01:14.1]} 29. Be5 {[%clk 0:00:13.3]} 29... Qg6 {[%clk 0:00:40.6]} 30. Re4
{[%clk 0:00:12.6]} 30... Bc8 {[%clk 0:00:37.7]} 31. Rxd3 {[%clk 0:00:10.1]}
31... Rxd3 {[%clk 0:00:37.7]} 32. Qxd3 {[%clk 0:00:10.8]} 32... Bf5 {[%clk
0:00:38]} 33. Qc4+ {[%clk 0:00:10.9]} 33... Be6 {[%clk 0:00:31.4]} 34. Qc3
{[%clk 0:00:09.9]} 34... Bf5 {[%clk 0:00:29.5]} 35. Re1 {[%clk 0:00:09.1]} 35...
Rd8 {[%clk 0:00:29.4]} 36. Kf2 {[%clk 0:00:05.8]} 36... Rd3 {[%clk 0:00:29.1]}
37. Qc4+ {[%clk 0:00:05.4]} 37... Be6 {[%clk 0:00:29.5]} 38. Qe4 {[%clk
0:00:03.7]} 38... Qxe4 {[%clk 0:00:29.7]} 39. Rxe4 {[%clk 0:00:04.6]} 39... Bxb3
{[%clk 0:00:26.9]} 40. Bb8 {[%clk 0:00:04.3]} 40... Rd7 {[%clk 0:00:26.6]} 41.
a5 {[%clk 0:00:03.4]} 41... bxa5 {[%clk 0:00:25.8]} 42. Re5 {[%clk 0:00:03.8]}
42... a4 {[%clk 0:00:21.4]} 43. Rxc5 {[%clk 0:00:03.1]} 43... a3 {[%clk
0:00:21.9]} 44. Ra5 {[%clk 0:00:03.5]} 44... a2 {[%clk 0:00:22.2]} 45. Be5
{[%clk 0:00:03.9]} 45... g5 {[%clk 0:00:17.9]} 46. g3 {[%clk 0:00:03.4]} 46...
Rd2+ {[%clk 0:00:17.5]} 47. Ke3 {[%clk 0:00:03.8]} 47... Rxh2 {[%clk 0:00:17.8]}
48. Ke4 {[%clk 0:00:04.3]} 48... Re2+ {[%clk 0:00:17.2]} 49. Kf5 {[%clk
0:00:04.2]} 49... Bc2+ {[%clk 0:00:15.4]} 50. Kf6 {[%clk 0:00:04.1]} 50... Re3
{[%clk 0:00:10.3]} 51. f4 {[%clk 0:00:01.9]} 51... Rxg3 {[%clk 0:00:04.3]} 52.
Rxa7 {[%clk 0:00:02]} 52... Be4 {[%clk 0:00:02.9]} 53. Rg7+ {[%clk 0:00:02.4]}
53... Kf8 {[%clk 0:00:02.9]} 54. Ra7 {[%clk 0:00:02.5]} 54... gxf4 {[%clk
0:00:02.1]} 55. Ke6 {[%clk 0:00:03.1]} 55... Rg6+ {[%clk 0:00:02.5]} 56. Bf6
{[%clk 0:00:03.5]} 56... f3 {[%clk 0:00:02.7]} 57. Rc7 {[%clk 0:00:03.9]} 57...
Rxf6+ {[%clk 0:00:03]} 58. Kxf6 {[%clk 0:00:04.5]} 58... Ke8 {[%clk 0:00:03.2]}
59. Rc8+ {[%clk 0:00:05.4]} 59... Kd7 {[%clk 0:00:03.6]} 60. Rc1 {[%clk
0:00:04.9]} 60... Bd3 {[%clk 0:00:03.3]} 61. Ra1 {[%clk 0:00:05.8]} 61... Kc6
{[%clk 0:00:03.9]} 62. Ke5 {[%clk 0:00:06.6]} 62... Bb1 {[%clk 0:00:04.1]} 63.
Kf4 {[%clk 0:00:07.5]} 63... Kc5 {[%clk 0:00:04.3]} 64. Kxf3 {[%clk 0:00:08.4]}
64... Kd5 {[%clk 0:00:04.8]} 65. Kg3 {[%clk 0:00:09.3]} 65... Ke5 {[%clk
0:00:05.3]} 66. Kh4 {[%clk 0:00:10.2]} 66... Kf6 {[%clk 0:00:06]} 67. Kh5 {[%clk
0:00:10.9]} 67... Kg7 {[%clk 0:00:06.6]} 68. Kh4 {[%clk 0:00:11.4]} 68... Kg6
{[%clk 0:00:07.2]} 69. Kg4 {[%clk 0:00:12.3]} 69... h5+ {[%clk 0:00:07.8]} 70.
Kh4 {[%clk 0:00:13.2]} 70... Kh6 {[%clk 0:00:08.4]} 71. Kg3 {[%clk 0:00:14.1]}
71... Kg5 {[%clk 0:00:09]} 72. Kh3 {[%clk 0:00:14.2]} 72... h4 {[%clk
0:00:09.6]} 73. Kh2 {[%clk 0:00:13.1]} 73... Kg4 {[%clk 0:00:09.9]} 74. Kg2
{[%clk 0:00:13.6]} 74... h3+ {[%clk 0:00:10.5]} 75. Kh2 {[%clk 0:00:14]} 75...
Kh4 {[%clk 0:00:11.1]} 76. Kg1 {[%clk 0:00:13.5]} 76... Kg3 {[%clk 0:00:11.3]}
77. Kh1 {[%clk 0:00:13.8]} 77... h2 {[%clk 0:00:10.5]} 78. Rxa2 {[%clk
0:00:14.1]} 78... Be4+ {[%clk 0:00:11.1]} 0-1

[Event "*** Titled Tuesday Blitz"]
[Site "Chess.com"]
[Date "2021.02.09"]
[Round "1"]
[White "aa175"]
[Black "HanSchut"]
[Result "1-0"]
[WhiteElo "2588"]
[BlackElo "2281"]
[TimeControl "180+1"]
[EndTime "10:08:57 PST"]
[Termination "aa175 won on time"]

1. d4 {[%clk 0:03:00.9]} 1... Nf6 {[%clk 0:02:59.6]} 2. Nf3 {[%clk 0:02:59.3]}
2... g6 {[%clk 0:02:59.7]} 3. Bf4 {[%clk 0:02:59.8]} 3... Bg7 {[%clk 0:02:59.3]}
4. e3 {[%clk 0:03:00.4]} 4... O-O {[%clk 0:02:59.8]} 5. Be2 {[%clk 0:03:01.1]}
5... b6 {[%clk 0:02:58.3]} 6. O-O {[%clk 0:03:01.4]} 6... Bb7 {[%clk 0:02:58.8]}
7. c4 {[%clk 0:03:01]} 7... d6 {[%clk 0:02:58.9]} 8. Nc3 {[%clk 0:03:00.8]} 8...
Nbd7 {[%clk 0:02:59.2]} 9. Qc2 {[%clk 0:03:01.3]} 9... Re8 {[%clk 0:02:55]} 10.
Rfd1 {[%clk 0:03:01.5]} 10... Nh5 {[%clk 0:02:39.4]} 11. Bg5 {[%clk 0:02:59.6]}
11... h6 {[%clk 0:02:36.1]} 12. Bh4 {[%clk 0:02:59.6]} 12... Bf6 {[%clk
0:02:15]} 13. Bxf6 {[%clk 0:02:39.2]} 13... Nhxf6 {[%clk 0:02:02.8]} 14. b4
{[%clk 0:02:39.8]} 14... Kg7 {[%clk 0:01:55.9]} 15. a4 {[%clk 0:02:38.4]} 15...
e6 {[%clk 0:01:55.4]} 16. a5 {[%clk 0:02:35.8]} 16... Qe7 {[%clk 0:01:49.9]} 17.
Nb5 {[%clk 0:02:31.5]} 17... Nf8 {[%clk 0:01:46.2]} 18. axb6 {[%clk 0:02:20.7]}
18... axb6 {[%clk 0:01:43.1]} 19. c5 {[%clk 0:02:19.6]} 19... Be4 {[%clk
0:01:32.2]} 20. cxd6 {[%clk 0:01:57.3]} 20... cxd6 {[%clk 0:01:03.9]} 21. Qc7
{[%clk 0:01:56.7]} 21... Rxa1 {[%clk 0:00:51.3]} 22. Rxa1 {[%clk 0:01:53.8]}
22... Qxc7 {[%clk 0:00:51.8]} 23. Nxc7 {[%clk 0:01:53.7]} 23... Rc8 {[%clk
0:00:52.2]} 24. Rc1 {[%clk 0:01:47.2]} 24... Kh7 {[%clk 0:00:42]} 25. Nd2 {[%clk
0:01:43.1]} 25... Bb7 {[%clk 0:00:33.5]} 26. Nb3 {[%clk 0:01:35.4]} 26... Nd5
{[%clk 0:00:33.3]} 27. Nxd5 {[%clk 0:01:34.4]} 27... Rxc1+ {[%clk 0:00:33]} 28.
Nxc1 {[%clk 0:01:34.1]} 28... Bxd5 {[%clk 0:00:33.9]} 29. Bf3 {[%clk 0:01:26.7]}
29... Bxf3 {[%clk 0:00:32.1]} 30. gxf3 {[%clk 0:01:27.6]} 30... Nd7 {[%clk
0:00:29.9]} 31. Ne2 {[%clk 0:01:21]} 31... Kg7 {[%clk 0:00:30.3]} 32. Nc3 {[%clk
0:01:20.5]} 32... Kf8 {[%clk 0:00:30.4]} 33. Kf1 {[%clk 0:01:19.4]} 33... Ke7
{[%clk 0:00:30.4]} 34. Ke2 {[%clk 0:01:19.8]} 34... h5 {[%clk 0:00:27.2]} 35. h4
{[%clk 0:01:18.8]} 35... f6 {[%clk 0:00:27.3]} 36. f4 {[%clk 0:01:15.4]} 36...
Kd8 {[%clk 0:00:22.8]} 37. Nb5 {[%clk 0:01:11]} 37... Ke7 {[%clk 0:00:21.2]} 38.
Na7 {[%clk 0:01:07.5]} 38... e5 {[%clk 0:00:20.7]} 39. fxe5 {[%clk 0:00:47.1]}
39... dxe5 {[%clk 0:00:21.6]} 40. d5 {[%clk 0:00:43.5]} 40... Kd6 {[%clk
0:00:20.1]} 41. e4 {[%clk 0:00:40.7]} 41... f5 {[%clk 0:00:19.1]} 42. f3 {[%clk
0:00:40.6]} 42... fxe4 {[%clk 0:00:18.2]} 43. fxe4 {[%clk 0:00:41.5]} 43... Nf6
{[%clk 0:00:18.7]} 44. Nb5+ {[%clk 0:00:40.3]} 44... Kd7 {[%clk 0:00:17.8]} 45.
Kf3 {[%clk 0:00:39.7]} 45... Ng4 {[%clk 0:00:17.9]} 46. Na3 {[%clk 0:00:34.2]}
46... Nh2+ {[%clk 0:00:18]} 47. Kg2 {[%clk 0:00:26.9]} 47... Ng4 {[%clk
0:00:17.1]} 48. Nc4 {[%clk 0:00:25.3]} 48... Kc7 {[%clk 0:00:16.6]} 49. Kf3
{[%clk 0:00:20.1]} 49... b5 {[%clk 0:00:16.8]} 50. Na5 {[%clk 0:00:04.6]} 50...
Nh2+ {[%clk 0:00:10.1]} 51. Kg3 {[%clk 0:00:04]} 51... Ng4 {[%clk 0:00:10.5]}
52. Kf3 {[%clk 0:00:02.6]} 52... Nh2+ {[%clk 0:00:09.2]} 53. Ke2 {[%clk
0:00:02.6]} 53... Ng4 {[%clk 0:00:08.8]} 54. Nc6 {[%clk 0:00:02.8]} 54... Kd6
{[%clk 0:00:08.9]} 55. Kf3 {[%clk 0:00:03.3]} 55... Nh2+ {[%clk 0:00:08.2]} 56.
Kg3 {[%clk 0:00:02.5]} 56... Ng4 {[%clk 0:00:09.1]} 57. Kf3 {[%clk 0:00:02.8]}
57... Nh2+ {[%clk 0:00:09.2]} 58. Ke3 {[%clk 0:00:03.3]} 58... Ng4+ {[%clk
0:00:09.6]} 59. Ke2 {[%clk 0:00:03.9]} 59... Nh2 {[%clk 0:00:09.5]} 60. Na7
{[%clk 0:00:03.8]} 60... Kc7 {[%clk 0:00:05.8]} 61. Nxb5+ {[%clk 0:00:03.9]}
61... Kb6 {[%clk 0:00:06.7]} 62. Nc3 {[%clk 0:00:03.8]} 62... Ng4 {[%clk
0:00:06.8]} 63. Kf3 {[%clk 0:00:02.8]} 63... Nf6 {[%clk 0:00:06.1]} 64. b5
{[%clk 0:00:03.2]} 64... Nh7 {[%clk 0:00:04.8]} 65. Kg3 {[%clk 0:00:02.4]} 65...
g5 {[%clk 0:00:05.1]} 66. hxg5 {[%clk 0:00:03.3]} 66... Nxg5 {[%clk 0:00:05.7]}
67. Kh4 {[%clk 0:00:03.7]} 67... Nf7 {[%clk 0:00:04.4]} 68. Kxh5 {[%clk
0:00:03.8]} 68... Nd6 {[%clk 0:00:05.3]} 69. Kg5 {[%clk 0:00:04]} 69... Kc5
{[%clk 0:00:05.8]} 70. Kf6 {[%clk 0:00:02.6]} 70... Kd4 {[%clk 0:00:06.3]} 71.
b6 {[%clk 0:00:02.6]} 71... Kxc3 {[%clk 0:00:04.8]} 72. Kxe5 {[%clk 0:00:03.5]}
72... Nb7 {[%clk 0:00:05]} 73. d6 {[%clk 0:00:04.2]} 73... Kc4 {[%clk
0:00:05.3]} 74. d7 {[%clk 0:00:04.6]} 74... Kc5 {[%clk 0:00:04.2]} 75. Ke6
{[%clk 0:00:05]} 75... Kxb6 {[%clk 0:00:04.6]} 76. Ke7 {[%clk 0:00:05.5]} 76...
Kc7 {[%clk 0:00:04.6]} 77. e5 {[%clk 0:00:05.8]} 77... Nd8 {[%clk 0:00:05.1]}
78. e6 {[%clk 0:00:06.1]} 78... Nc6+ {[%clk 0:00:05.5]} 79. Ke8 {[%clk
0:00:06.3]} 79... Kd6 {[%clk 0:00:04.9]} 80. e7 {[%clk 0:00:06]} 80... Kc7
{[%clk 0:00:01.9]} 81. d8=Q+ {[%clk 0:00:06.9]} 81... Nxd8 {[%clk 0:00:01.9]}
82. exd8=Q+ {[%clk 0:00:07.5]} 82... Kc6 {[%clk 0:00:02.8]} 83. Qd4 {[%clk
0:00:07.6]} 1-0

[Event "*** Titled Tuesday Blitz"]
[Site "Chess.com"]
[Date "2021.02.09"]
[Round "1"]
[White "manitodeplomo"]
[Black "Nils_03"]
[Result "1/2-1/2"]
[WhiteElo "2622"]
[BlackElo "2331"]
[TimeControl "180+1"]
[EndTime "10:09:10 PST"]
[Termination "Game drawn - insufficient material"]

1. d4 {[%clk 0:02:53.3]} 1... d5 {[%clk 0:02:52.8]} 2. c4 {[%clk 0:02:53.6]}
2... e6 {[%clk 0:02:51.3]} 3. Nf3 {[%clk 0:02:53.8]} 3... c6 {[%clk 0:02:51.2]}
4. Nc3 {[%clk 0:02:53.1]} 4... dxc4 {[%clk 0:02:51.2]} 5. e3 {[%clk 0:02:53.3]}
5... b5 {[%clk 0:02:50.8]} 6. a4 {[%clk 0:02:53.9]} 6... Bb4 {[%clk 0:02:49.8]}
7. Bd2 {[%clk 0:02:54.1]} 7... a5 {[%clk 0:02:47.2]} 8. axb5 {[%clk 0:02:54.1]}
8... Bxc3 {[%clk 0:02:47.8]} 9. Bxc3 {[%clk 0:02:55]} 9... cxb5 {[%clk 0:02:48]}
10. b3 {[%clk 0:02:55.5]} 10... Bb7 {[%clk 0:02:48.1]} 11. bxc4 {[%clk
0:02:56.1]} 11... b4 {[%clk 0:02:48.7]} 12. Bb2 {[%clk 0:02:56.7]} 12... Nf6
{[%clk 0:02:44.8]} 13. Bd3 {[%clk 0:02:57]} 13... O-O {[%clk 0:02:43.9]} 14. O-O
{[%clk 0:02:56.8]} 14... Nbd7 {[%clk 0:02:43.4]} 15. Re1 {[%clk 0:02:55.7]}
15... Ne4 {[%clk 0:02:33]} 16. Rc1 {[%clk 0:02:47.4]} 16... Qc7 {[%clk
0:02:27.3]} 17. c5 {[%clk 0:02:45.3]} 17... Bd5 {[%clk 0:02:17.1]} 18. Bxe4
{[%clk 0:02:35]} 18... Bxe4 {[%clk 0:02:16.6]} 19. Nd2 {[%clk 0:02:32.5]} 19...
Bc6 {[%clk 0:02:12.7]} 20. e4 {[%clk 0:02:28.7]} 20... a4 {[%clk 0:02:11.2]} 21.
d5 {[%clk 0:02:22.5]} 21... exd5 {[%clk 0:02:03.2]} 22. exd5 {[%clk 0:02:13.8]}
22... Bxd5 {[%clk 0:02:01.1]} 23. Qg4 {[%clk 0:02:13.8]} 23... f6 {[%clk
0:01:36.2]} 24. c6 {[%clk 0:01:38.4]} 24... Ne5 {[%clk 0:01:26.3]} 25. Qxb4
{[%clk 0:01:32.6]} 25... Nxc6 {[%clk 0:01:14.8]} 26. Qc5 {[%clk 0:01:28.7]}
26... Ra5 {[%clk 0:01:07.9]} 27. Qc3 {[%clk 0:01:19.7]} 27... Qd7 {[%clk
0:00:53]} 28. Nf1 {[%clk 0:01:12.4]} 28... Rb5 {[%clk 0:00:41.3]} 29. Ba3 {[%clk
0:01:04.6]} 29... Rfb8 {[%clk 0:00:30.2]} 30. Ne3 {[%clk 0:01:02]} 30... Ne5
{[%clk 0:00:20.9]} 31. Red1 {[%clk 0:00:57.6]} 31... Qf7 {[%clk 0:00:19.1]} 32.
Bd6 {[%clk 0:00:52.5]} 32... Rd8 {[%clk 0:00:17.1]} 33. Bxe5 {[%clk 0:00:50.9]}
33... fxe5 {[%clk 0:00:13.9]} 34. Qxe5 {[%clk 0:00:51.1]} 34... a3 {[%clk
0:00:12.5]} 35. Rc7 {[%clk 0:00:49.6]} 35... Qf6 {[%clk 0:00:08.7]} 36. Qxf6
{[%clk 0:00:17.9]} 36... gxf6 {[%clk 0:00:09.6]} 37. h3 {[%clk 0:00:17.6]} 37...
a2 {[%clk 0:00:09.3]} 38. Rcc1 {[%clk 0:00:06.2]} 38... Rd7 {[%clk 0:00:04]} 39.
Ra1 {[%clk 0:00:05]} 39... Ra5 {[%clk 0:00:04.1]} 40. Nxd5 {[%clk 0:00:04.7]}
40... Rdxd5 {[%clk 0:00:05]} 41. Rxd5 {[%clk 0:00:05.2]} 41... Rxd5 {[%clk
0:00:05.8]} 42. Rxa2 {[%clk 0:00:05.6]} 42... Kg7 {[%clk 0:00:06.7]} 43. Ra3
{[%clk 0:00:06]} 43... Kg6 {[%clk 0:00:06.9]} 44. Rg3+ {[%clk 0:00:06.5]} 44...
Kf7 {[%clk 0:00:06.7]} 45. Kh2 {[%clk 0:00:07.4]} 45... h5 {[%clk 0:00:06.8]}
46. Rf3 {[%clk 0:00:07.9]} 46... Ra5 {[%clk 0:00:07]} 47. h4 {[%clk 0:00:08]}
47... Kg6 {[%clk 0:00:07.4]} 48. g3 {[%clk 0:00:08.5]} 48... Ra4 {[%clk
0:00:07.4]} 49. Kg2 {[%clk 0:00:08.9]} 49... Rb4 {[%clk 0:00:07.7]} 50. Re3
{[%clk 0:00:09.2]} 50... Ra4 {[%clk 0:00:08.2]} 51. Kf3 {[%clk 0:00:09.7]} 51...
Rb4 {[%clk 0:00:08.5]} 52. Re4 {[%clk 0:00:10.1]} 52... Rb3+ {[%clk 0:00:08.8]}
53. Kf4 {[%clk 0:00:10.1]} 53... Rb2 {[%clk 0:00:09.3]} 54. f3 {[%clk
0:00:10.4]} 54... Rb3 {[%clk 0:00:09.8]} 55. g4 {[%clk 0:00:10.2]} 55... hxg4
{[%clk 0:00:09.7]} 56. fxg4 {[%clk 0:00:11.1]} 56... Rb1 {[%clk 0:00:09.6]} 57.
Re6 {[%clk 0:00:10.4]} 57... Rf1+ {[%clk 0:00:09]} 58. Kg3 {[%clk 0:00:10.5]}
58... Rg1+ {[%clk 0:00:09.2]} 59. Kh3 {[%clk 0:00:10.2]} 59... Rh1+ {[%clk
0:00:08.7]} 60. Kg3 {[%clk 0:00:10.5]} 60... Rg1+ {[%clk 0:00:09.1]} 61. Kf3
{[%clk 0:00:11]} 61... Rf1+ {[%clk 0:00:07.3]} 62. Kg2 {[%clk 0:00:10.9]} 62...
Ra1 {[%clk 0:00:06.7]} 63. g5 {[%clk 0:00:10.5]} 63... Kh5 {[%clk 0:00:06.3]}
64. gxf6 {[%clk 0:00:05.5]} 64... Ra2+ {[%clk 0:00:03.1]} 65. Kg3 {[%clk
0:00:05.3]} 65... Ra3+ {[%clk 0:00:03.1]} 66. Kf4 {[%clk 0:00:05.4]} 66... Kg6
{[%clk 0:00:03.3]} 67. Rd6 {[%clk 0:00:03.2]} 67... Ra4+ {[%clk 0:00:03.3]} 68.
Ke5 {[%clk 0:00:03.6]} 68... Rxh4 {[%clk 0:00:02.8]} 69. Ke6 {[%clk 0:00:03.6]}
69... Re4+ {[%clk 0:00:02.9]} 70. Kd5 {[%clk 0:00:03.5]} 70... Re1 {[%clk
0:00:03]} 71. Re6 {[%clk 0:00:04]} 71... Rd1+ {[%clk 0:00:02.3]} 72. Ke5 {[%clk
0:00:04.4]} 72... Re1+ {[%clk 0:00:02.7]} 73. Kd6 {[%clk 0:00:04.6]} 73... Rd1+
{[%clk 0:00:03.6]} 74. Ke7 {[%clk 0:00:04.7]} 74... Rf1 {[%clk 0:00:03.1]} 75.
f7+ {[%clk 0:00:04.9]} 75... Kg7 {[%clk 0:00:03.5]} 76. f8=Q+ {[%clk 0:00:04.4]}
76... Rxf8 {[%clk 0:00:03.4]} 77. Rg6+ {[%clk 0:00:04.7]} 77... Kxg6 {[%clk
0:00:03.6]} 78. Kxf8 {[%clk 0:00:05.6]} 1/2-1/2